Cogmind - Beta 16 --- EXPLORER MODE // 2025.12.29 @ 17:22:50 Player: K.K.Y. Result: Destroyed by MK-6V8(R) with Subdweller Machine Gun Performance ------------- Evolutions (0) 0 Regions Visited (3) 600 Robots Destroyed (34) 170 Value Destroyed (807) 807 Prototype IDs (12) 240 Alien Tech Used (0) 0 Bonus (-65) -65 TOTAL SCORE: 1752 Bonus ------- Follower Combat Kills 14 Friendly Fire -79 Cogmind --------- Core Integrity 0/250 Matter 300/300 Energy 243/265 System Corruption 0% Temperature Cool (12) Movement Treading (160) Location -10/Subcaves Parts ------- > --- POWER (1) -------- Improved Ion Engine > --- PROPULSION (2) --- Light Treads Light Treads > --- UTILITY (3) ------ Large Storage Unit Weight Redist. System > --- WEAPON (2) ------- Particle Gun Beam Cannon > --- INVENTORY (15) --- Scrap Suit Huge Storage Unit Light Humpback Machine Analyzer Sensor Array Core Shielding Core Shielding Beam Cannon Mining Laser Flail Flail Peak State ------------ > --- POWER ------------ Ion Engine Light Nuclear Core > --- PROPULSION ------- Light Treads Light Treads > --- UTILITY ---------- Large Storage Unit Weight Redist. System Structural Scanner > --- WEAPON ----------- Powered Cannon > --- INVENTORY -------- Ion Engine Light Treads Light Treads Light Treads Scrap Suit Huge Storage Unit Sensor Array Core Shielding Core Shielding Particle Gun Beam Cannon Mining Laser Flail [Rating: 26] Favorites ----------- Power Ion Engine Engine Ion Engine Power Core Light Nuclear Core Propulsion Light Treads Treads Light Treads Utility Weight Redist. System Device Weight Redist. System Storage Large Storage Unit Weapon Beam Cannon Energy Gun Small Laser Energy Cannon Beam Cannon Impact Weapon Flail Build | -11 -10 -10 -10 ------- Run | Yrd Mat Min Sub Slots Evolved 1 | . 1 . . Power . | . . . . Propulsion . | . . . . Utility 1 | . 1 . . Weapon . | . . . . Parts Attached 23 | 2 13 . 8 Power 4 | . 1 . 3 Engine 3 | . 1 . 2 Core 1 | . . . 1 Reactor . | . . . . Propulsion 7 | . 4 . 3 Treads 7 | . 4 . 3 Leg . | . . . . Wheel . | . . . . Hover . | . . . . Flight . | . . . . Utility 4 | 1 3 . . Device 2 | . 2 . . Storage 2 | 1 1 . . Processor . | . . . . Hackware . | . . . . Protection . | . . . . Artifact . | . . . . Weapon 8 | 1 5 . 2 Energy Gun 3 | 1 1 . 1 Energy Cannon 3 | . 2 . 1 Ballistic Gun . | . . . . Ballistic Cannon . | . . . . Launcher . | . . . . Special Weapon . | . . . . Impact Weapon 2 | . 2 . . Slashing Weapon . | . . . . Piercing Weapon . | . . . . Special Melee Weapon . | . . . . Unidentified Prototypes . | . . . . Parts Lost 3 | . . . 3 Power 1 | . . . 1 Propulsion . | . . . . Utility 1 | . . . 1 Weapon 1 | . . . 1 Highest Loss Streak 1 | . . . 1 To Critical Strikes . | . . . . Average Backups 10 | 5 9 12 12 Power 1 | 1 1 1 . Propulsion 2 | 1 2 3 . Utility 4 | 1 2 4 6 Weapon 3 | . 1 3 5 Tool/Special . | . . . . Unused Backups 8 | . 1 . 7 Power 1 | . 1 . . Propulsion . | . . . . Utility 6 | . . . 6 Weapon 1 | . . . 1 Tool/Special . | . . . . Average Slot Usage (%) 80 | . 71 92 83 Engine 9 | . 7 12 11 Treads 17 | . 13 17 23 Device 18 | . 14 25 17 Storage 11 | . 12 12 11 Energy Gun 5 | . 10 . 1 Energy Cannon 15 | . 12 25 12 Peak Build Rating 26 | 2 11 11 26 Average Rating 11 | 1 6 10 21 On Entrance 5 | . 2 9 11 Avg Prop Armor Cover (%) . | . . . . Naked Turns . | . . . . Heaviest Build 40 | 11 32 32 40 Greatest Support 46 | 3 46 46 46 Greatest Overweight (x) 3 | 3 3 1 . Average Overweight (x) . | 2 1 . . Largest Inventory Capacity 15 | 10 15 15 15 Average Capacity 13 | 9 12 15 15 Most Carried 15 | 7 12 15 15 Average Carried 11 | 6 9 13 14 Final Capacity 15 | 10 15 15 15 Final Carried 15 | 7 12 15 13 Class Distribution -------------------- 97% | Hacker-Mutant Dominant Class ---------------- Hacker-Mutant | -10/Materials Hacker-Mutant | -10/Mines Hacker-Mutant | -10/Subcaves Resources | -11 -10 -10 -10 ----------- Run | Yrd Mat Min Sub Matter Collected 530 | 131 249 30 120 Remotely . | . . . . Salvage Created 1432 | 11 723 191 507 Parts 74 | 3 38 5 28 Haulers Intercepted 2 | . 2 . . Recyclers Shooed 1 | . 1 . . Parts Field Recycled . | . . . . Retrieved Matter . | . . . . Parts Self-Destructed . | . . . . Prevented . | . . . . Parts Restored . | . . . . Kills | -11 -10 -10 -10 ------- Run | Yrd Mat Min Sub Combat Hostiles Destroyed 22 | . 9 3 10 Guns 11 | . 9 . 2 Cannons 10 | . . 3 7 Classes Destroyed 10 | 1 7 . 2 Worker 3 | . 3 . . Builder 1 | . 1 . . Tunneler 1 | 1 . . . Hauler 2 | . 2 . . Recycler 2 | . 2 . . Watcher 3 | . 3 . . Swarmer 4 | . 4 . . Grunt 7 | . 5 2 . Artisan 2 | . . . 2 Subdweller 10 | . . . 10 Best Kill Streak 3 | 1 2 2 3 Combat Bots Only 3 | . 2 2 3 Max Kills in Single Turn 1 | 1 1 1 1 Gunslinging . | . . . . Exploded . | . . . . Melee . | . . . . Uniques/NPCs Destroyed 1 | . . 1 . YI-UF0 (-10/Mines) Combat | -11 -10 -10 -10 -------- Run | Yrd Mat Min Sub Hostile Shots Fired 126 | . 57 9 60 Missed 44 | . 21 5 18 Hits 82 | . 36 4 42 Projectile 82 | . 36 4 42 AOE 11 | . . 6 5 Critical Strikes 3 | . 1 . 2 Damage Taken 1053 | . 286 104 663 Core 258 | . 147 22 89 Absorbed by Shields . | . . . . Ignored by Resistances 645 | . 186 64 395 Core Remaining (%) 100 | 100 . . . Volleys Fired 132 | 5 70 9 48 Largest 2 | 1 2 2 2 Hottest 125 | 40 120 120 125 Shots Fired 188 | 5 107 18 58 Gun 110 | 5 95 . 10 Cannon 78 | . 12 18 48 Launcher . | . . . . Special . | . . . . Kinetic . | . . . . Thermal 188 | 5 107 18 58 Explosive . | . . . . Electromagnetic . | . . . . Robot Hit Streak 32 | 5 32 11 28 Robot Miss Streak 3 | . 3 2 1 Penetration Max . | . . . . Secondary Targets . | . . . . Shots Hit Robots 144 | 5 81 11 47 Core Hits 52 | 2 33 5 12 Critical Kills 1 | . . . 1 Critical Parts Destroyed . | . . . . Critical Strikes 1 | . . . 1 Meltdown 1 | . . . 1 Melee Attacks 5 | . 3 . 2 Impact 5 | . 3 . 2 Slashing . | . . . . Piercing . | . . . . Sneak Attacks . | . . . . Combat Hostiles . | . . . . Follow-up Attacks . | . . . . Damage Inflicted 2893 | 53 912 227 1701 Guns 1060 | 53 858 . 149 Cannons 1833 | . 54 227 1552 Explosions . | . . . . Melee . | . . . . Ramming . | . . . . Kinetic . | . . . . Thermal 2893 | 53 912 227 1701 Explosive . | . . . . Electromagnetic . | . . . . Impact . | . . . . Slashing . | . . . . Piercing . | . . . . Highest Corruption . | . . . . Average Corruption . | . . . . Corruption Purged . | . . . . Corruption Blocked . | . . . . Overload Shots . | . . . . Overflow Damage 19 | . . . 19 Projectiles 19 | . . . 19 Explosions . | . . . . Melee . | . . . . Knockbacks . | . . . . Impact . | . . . . Kinetic . | . . . . Secondary . | . . . . Self-Inflicted Damage . | . . . . Shots . | . . . . Rammed . | . . . . Targets Rammed . | . . . . Kicked . | . . . . Crushed . | . . . . Highest Temperature 214 | . 120 214 30 Average Temperature 27 | . 16 80 10 Received Heat Transfer 369 | . 243 18 108 Siege Activations . | . . . . Martial Activations . | . . . . Shielding Activations . | . . . . Robots Disrupted . | . . . . Combat Hostiles . | . . . . Robots Corrupted . | . . . . Combat Hostiles . | . . . . Parts Fried . | . . . . Impact Corruptions . | . . . . Robots Melted 1 | . . . 1 Combat Hostiles 1 | . . . 1 Parts Melted 12 | . 6 1 5 Heat Transferred 3296 | 125 2061 481 629 Parts Sabotaged . | . . . . Parts Stolen . | . . . . Parts Stripped . | . . . . Power Chain Reactions . | . . . . Alert | -11 -10 -10 -10 ------- Run | Yrd Mat Min Sub Maximum Alert Level . | . . . . Low Security (%) 100 | 100 100 100 . Level 1 . | . . . . Level 2 . | . . . . Level 3 . | . . . . Level 4 . | . . . . Level 5 . | . . . . High Security . | . . . . Max Security . | . . . . Peak Influence 55 | 5 55 52 . Initial . | . . . . Average 2 | . 3 1 . Influence Increases 397 | 5 290 102 . Destroy 0b10 Robot/C 260 | . 180 80 . Destroy 0b10 Robot/NC 60 | 5 55 . . Destroy Leader 70 | . 50 20 . Allied During Kill 2 | . . 2 . Disable Machine 4 | . 4 . . Destroy Structure 1 | . 1 . . Influence Decreases 397 | 5 290 102 . Time Decay 345 | 5 290 50 . Lost Ally 52 | . . 52 . Squads Dispatched . | . . . . Investigation . | . . . . Extermination . | . . . . Reinforcement . | . . . . Assault . | . . . . Garrison . | . . . . Intercept . | . . . . Searches Triggered . | . . . . Construction Impeded . | . . . . Haulers Reinforced . | . . . . Active Scanning Responses . | . . . . Cargo Convoy Interrupts . | . . . . Stealth | -11 -10 -10 -10 --------- Run | Yrd Mat Min Sub Distress Signals 1 | . 1 . . Communications Jammed . | . . . . Distress Signals . | . . . . Times Spotted 35 | . 17 5 13 Peak Tracking Total 3 | . 3 2 3 Tactical Retreats . | . . . . Traps | -11 -10 -10 -10 ------- Run | Yrd Mat Min Sub Traps Triggered 4 | . 4 . . Indirectly . | . . . . Trap Hack Attempts . | . . . . Triggered . | . . . . Disarmed . | . . . . Reprogrammed . | . . . . Reused . | . . . . Traps Extracted . | . . . . Installed . | . . . . Triggered . | . . . . Machines | -11 -10 -10 -10 ---------- Run | Yrd Mat Min Sub Machines Disabled 2 | . 1 . 1 Max in Single Turn 1 | . 1 . 1 Machines Repaired . | . . . . Machines Dismantled . | . . . . Machines Sabotaged . | . . . . Overloaded Fab Kills . | . . . . Hacking | -11 -10 -10 -10 --------- Run | Yrd Mat Min Sub Machines Accessed 3 | . 1 . 2 Terminals 1 | . 1 . . Fabricators . | . . . . Repair Stations . | . . . . Recycling Units . | . . . . Scanalyzers . | . . . . Garrison Access . | . . . . Total Hacks 5 | . 1 . 4 Successful 5 | . 1 . 4 Failed . | . . . . Catastrophic . | . . . . Database Lockouts . | . . . . Manual 1 | . 1 . . Terminals 1 | . 1 . . Fabricators . | . . . . Repair Stations . | . . . . Recycling Units . | . . . . Scanalyzers . | . . . . Garrison Access . | . . . . Terminal Hacks 4 | . . . 4 Record 3 | . . . 3 Proto ID Catalog 1 | . . . 1 Fabricator Hacks . | . . . . Repair Station Hacks . | . . . . Recycling Unit Hacks . | . . . . Scanalyzer . | . . . . Garrison Access Hacks . | . . . . Unauthorized Hacks 1 | . 1 . . Terminals 1 | . 1 . . Botnet 1 | . 1 . . Fabricators . | . . . . Repair Stations . | . . . . Recycling Units . | . . . . Scanalyzers . | . . . . Garrison Access . | . . . . Data Cores Recovered . | . . . . Used . | . . . . Hacking Detections . | . . . . Full Trace Events . | . . . . Feedback Events . | . . . . Feedback Blocked . | . . . . Robot Schematics Acquired . | . . . . Robots Built . | . . . . Authchips . | . . . . Time . | . . . . Total Robot Build Rating . | . . . . Part Schematics Acquired . | . . . . Parts Built . | . . . . Authchips . | . . . . Time . | . . . . Total Part Build Rating . | . . . . Part Studies Acquired . | . . . . Parts Repaired . | . . . . Time . | . . . . Parts Recycled . | . . . . Recycled Matter . | . . . . Retrieved Matter . | . . . . Retrieved Components . | . . . . Parts Scanalyzed . | . . . . Part Schematics Acquired . | . . . . Parts Damaged . | . . . . Bothacking | -11 -10 -10 -10 ------------ Run | Yrd Mat Min Sub Used RIF Installer . | . . . . Robots Hacked . | . . . . Non-combat . | . . . . Combat . | . . . . Robot Hacks Applied . | . . . . Relay Couplers Released . | . . . . Fabnet Peak Effective % . | . . . . Robots Rewired . | . . . . Allies Hacked . | . . . . Hacks Repelled . | . . . . Allies | -11 -10 -10 -10 -------- Run | Yrd Mat Min Sub Total Allies 3 | . . 3 . Largest Group 3 | . . 3 . Highest-Rated Group 40 | . . 40 . Highest-Rated Ally 16 | . . 16 . Total Orders . | . . . . Ally Attacks 14 | . . 14 . Total Damage 150 | . . 150 . Kills 2 | . . 2 . Allies Corrupted . | . . . . Allies Melted . | . . . . Intel | -11 -10 -10 -10 ------- Run | Yrd Mat Min Sub Active Infowar (turns) 3188 | . 1241 1318 629 Structural 3188 | . 1241 1318 629 Robot Analysis Total . | . . . . Derelict Logs Recovered . | . . . . Drone Launches . | . . . . Drone Recoveries . | . . . . Exploration | -11 -10 -10 -10 ------------- Run | Yrd Mat Min Sub Turns Passed 5025 | 117 2305 1318 1285 Spaces Moved 2547 | 54 1140 650 703 Core 413 | 54 359 . . Treads 2134 | . 781 650 703 Legs . | . . . . Wheels . | . . . . Hover . | . . . . Flight . | . . . . Fastest Speed 50 | 50 150 160 160 Average Speed 177 | 158 178 197 160 Slowest Speed 240 | 200 240 240 160 Overloaded Moves . | . . . . Propulsion Burnouts . | . . . . Robots Hopped . | . . . . Potential Cave-ins . | . . . . Cave-ins Triggered . | . . . . Exploration Rate (%) 62 | 4 97 99 49 Regions Visited 3 Branch Regions 2 Pre-discovered Areas 1 | . . 1 . Known Exits Taken 3 | 1 1 1 . Unknown Exits Taken . | . . . . Scrap Searched 6 | . . 1 5 Spaces Dug 1 | . 1 . . Terrain Destroyed 3 | . 1 . 2 Melee 1 | . 1 . . Projectile 2 | . . . 2 AOE . | . . . . Terrain Rammed . | . . . . Walls Destroyed . | . . . . Machines Disabled . | . . . . Actions | -11 -10 -10 -10 --------- Run | Yrd Mat Min Sub Total 2860 | 80 1295 669 816 Wait 101 | 13 45 7 36 Move 2544 | 53 1139 649 703 Hop . | . . . . Pick Up 29 | 7 14 3 5 Fast Attach 7 | 2 4 . 1 Attach 12 | . 7 1 4 Detach 1 | . 1 . . Swap 14 | . 7 . 7 Drop 15 | . 5 . 10 Fire 132 | 5 70 9 48 Melee 5 | . 3 . 2 Ram . | . . . . Kick . | . . . . Crush . | . . . . Escape Stasis . | . . . . Rewire . | . . . . Trap . | . . . . Miscellaneous . | . . . . Route ------- -11/Scrapyard -10/Materials (discovered 6 exits: *Mat x3 / *Min x2 / Sub) -10/Mines (discovered 4 exits: *Mat x2 / *Exi / *Sub) -10/Subcaves History --------- Turn | Location | Event 7 | -11/Scrapyard | Identified exit to Materials 7 | -11/Scrapyard | Discovered exit to Materials (range 14) 118 | -11/Scrapyard | Entered Materials 118 | -10/Materials | Evolved 1 slot: Utility x1 296 | -10/Materials | Core integrity fell below 50% 309 | -10/Materials | Build established: Hacker-Mutant 331 | -10/Materials | Identified exit to Materials 331 | -10/Materials | Discovered exit to Materials (range 15) 678 | -10/Materials | Identified exit to Mines 678 | -10/Materials | Discovered exit to Mines (range 16) 747 | -10/Materials | Discovered exit to Mines (range 5) 1074 | -10/Materials | Discovered exit to Materials (range 16) 1400 | -10/Materials | Discovered exit to Materials (range 16) 1432 | -10/Materials | Identified exit to Subcaves 1432 | -10/Materials | Discovered exit to Subcaves (range 12) 2423 | -10/Materials | Entered Mines 2428 | -10/Mines | Assisted by bots powering up and referring to "LRC-V3" 2540 | -10/Mines | Destroyed YI-UF0 2568 | -10/Mines | Lost 3 allies 2719 | -10/Mines | Found a Scrap Suit stashed away for nefarious purposes 2723 | -10/Mines | Found Scrap Suit 2753 | -10/Mines | Deemed a non-threat by the Exiles lab entrance 2753 | -10/Mines | Identified exit to Exiles 2753 | -10/Mines | Discovered exit to Exiles (range 5) 3075 | -10/Mines | Discovered exit to Materials (range 10) 3367 | -10/Mines | Discovered exit to Materials (range 5) 3403 | -10/Mines | Learned location of Storage (-8) 3728 | -10/Mines | Discovered exit to Subcaves (range 6) 3741 | -10/Mines | Entered Subcaves 3742 | -10/Subcaves | Approached by a straggling Scientist 3844 | -10/Subcaves | Visited 4L-MR0's lab 3866 | -10/Subcaves | Found Powered Cannon 3867 | -10/Subcaves | Attached Powered Cannon, gained temporary slot: Power 4291 | -10/Subcaves | Ambushed by Subdweller buried in earth 4291 | -10/Subcaves | Ambushed by Subdweller buried in earth 4294 | -10/Subcaves | Core integrity fell below 20% 4301 | -10/Subcaves | Ambushed by Subdweller buried in earth 4531 | -10/Subcaves | Visited Clippyterm 4535 | -10/Subcaves | Learned Research machine intel 4650 | -10/Subcaves | Shifting Twisted Machinery released Sub. Optics 5026 | -10/Subcaves | Destroyed by MK-6V8(R) with Subdweller Machine Gun Last Messages --------------- unimaginable chaos on any area not hardened against them. That includes... just about anywhere. Sub. Optics falls loose from the Twisted Machinery. 04737_ Dropped Lgt. Treads. 04742_ Acquired 20 matter. 04746_ Dropped Ion Engine. 04866_ 4Y-1O7(u) deconstructs Twisted Machinery. 04867_ 4Y-1O7(u) cries out in pain. 04867_ 4Y-1O7(u) destroyed. 04869_ Acquired 10 matter. 04897_ Powered Cannon destroyed. 04905_ Disposable Heat Sink melted. 04905_ TO-UXB(R) destroyed. 04911_ Acquired 20 matter. 05010_ Sub. Optics melted. 05010_ 20-SPM(R) destroyed. 05015_ MK-6V8(R) affixes Scrap Shield Fragment to Scrap Shield. Map ----- +----------------------------------------------------+ | ?????????????????????????????????????????????????? | | ?????????????????????????????????????????????????? | | ?????????????????????????????????????????????????? | | ?????????????????????????????????????????????????? | | ?????????????????????????????????????????????????? | | ???????????????????????????????????????????????? | | ??????????????????????????????????????????????? | | ???????????????????????????????????????????????# | | ?????????????????????????????????????????????### | | ?????????????????????????????????????????????# | | ????????????????????????????????????????????? | | ?????????????????????????????????????????????? | | ??????????????????????????????????????????????# | | ??????????????????????????????????????????????# | | ??????????????????????????????????????????????# | | ??????????????????????????????????????????????# | | ??????????????????????????????????????????????? | | ????????????????????????????????????????????????# | | ???????????????????????????????????????????????## | | ?????????????????????????????????????????????### | | ????????????????????????????????????????????## [ | | ?????????????????## ????????????????????????# | | ?????????????????# ???????????????????????# ### | | ???????????????### <#???###??????????????## ##?? | | ???????????????# < ! ### ###???????????## #??? | | ?????????????# %R @ ####?????#### ##?? | | ?????????????????######## #?????# ### | | ???????????????????????## #????## | | ??????????????????????## #????# # | | ?????????????????????## #????# # | | ??????????????? ####### # ! ## | | ?????????????? ### ### #? | | ??????????????? ## ## ####### #? | | ??????????????????## ####### ## #???## #? | | ???????????????????## #??????## # ##??# #? | | ????????????????????##????????## ## #### #? | | ???????????????????????????????##### ## ##? | | ???????????????????????????????????# ##?? | | ????????????????????????????????#### ##??? | | ????????????????????????????????# #???? | | ???????????????????????????????# ### ##???? | | ??????????????????????????????# ??# #####????? | | ???????????????????????????? ??###????????? | | ????????????????????????? ?????????????? | | ???????????????????????? ## " ?????????????? | | ????????????????????????#???#] " " ?????????????? | | ????????????????????????????##"""" ?????????????? | | ??????????????????????????????#"" #?????????????? | | ????????????????????????????????? ??????????????? | | ???????????????????????????????? ??????????????? | +----------------------------------------------------+ Best States ------------- Heat Dissipation 25 Energy Generation 19 Energy Capacity 310 Matter Stores 300 Matter Capacity 300 Sight Range 16 Terrain Scan Density 10 Additional Mass Support 6 Resistance: KI 35 Resistance: TH 35 Resistance: EX 35 Resistance: EM 35 Resistance: I 35 Resistance: S 35 Resistance: P 35 Evasion (%) 50 Recoil Reduction 2 Offensive Hacking 20 Item Schematics ----------------- None Robot Schematics ------------------ None Fabricated ------------ Nothing Repaired ---------- Nothing Studied --------- None Alien Tech Used ----------------- None Achievements -------------- None Challenges ------------ None Game ------ Seed GlidesysMiniShield Manual? 0 Play Time 00:26:29 Cumulative 234.5 hours Start 2025.12.29 @ 14:18:47 End 2025.12.29 @ 17:22:50 Sessions 1 Manual Loads 0 Difficulty Explorer Special Mode None Game No. 369 Rogue 0 Adventurer 0 Explorer 369 Win Type - Total 0 Types 0/0/0/0/0/0/0/0/0/0 Lore% 71 Gallery% 68 Achievement% 54 Wizard Run 0 Options --------- Layout 1 ASCII 0 Keyboard 0 Movement Mouse Keybinds 0 Fullscreen 1 Font 24/Smallcaps Map View 50x35 Zoom Use 0% Tactical HUD 1 Map Filters NONE Filters NONE Steam 1 RUN: 7b115a1c-e634-40ed-bc10-90bf5801428d